fUSD/lending_fUSD_20241221
["ID","MTS","AMOUNT","RATE_DAILY","PERIOD"]
[346230843,1734790250117,-500.0,0.00019699,2]
[346230844,1734790250126,-754.03,0.00019699,2]
[346230845,1734790250136,-882.13,0.00019699,2]
[346230846,1734790250145,-1407.71,0.00019699,2]
[346230847,1734790250155,-1199.65,0.00019699,2]
[346230848,1734790250166,-2011.54,0.00019699,2]
[346230849,1734790250175,-733.74,0.00019699,2]
[346230850,1734790250185,-630.02,0.00019699,2]
[346230851,1734790250194,-500.0,0.00019699,2]
[346230852,1734790250203,-610.74,0.00019699,2]
[346230853,1734790250213,-2556.32,0.00019699,2]
[346230854,1734790250223,-654.7,0.00019699,2]
[346230855,1734790250233,-576.42,0.00019699,2]
[346230856,1734790250242,-1569.99,0.00019699,2]
[346230857,1734790250252,-500.0,0.00019699,2]
[346230858,1734790250262,-500.0,0.00019699,2]
[346230859,1734790250271,-1000.0,0.00019699,2]
[346230860,1734790250281,-500.0,0.00019699,2]
[346230861,1734790250290,-500.0,0.00019699,2]
[346230862,1734790250299,-29568.0728,0.000197,2]
[346230863,1734790250308,-1608.86879466,0.00019709,2]
[346230864,1734790250317,-1608.86879466,0.00019743,2]
[346230865,1734790250327,-150.0,0.00019765,2]
[346230866,1734790250336,-2674.367,0.00019773,2]
[346230867,1734790250346,-166.429,0.00019773,2]
[346230868,1734790250356,-1608.86879466,0.00019777,2]
[346230869,1734790250365,-164.23356661,0.00019789,2]
[346230870,1734790250375,-4344.75183793,0.00019797,5]
[346230871,1734790250385,-942.83,0.00019798,2]
[346230872,1734790250395,-534.8,0.00019798,2]
[346230873,1734790250405,-500.0,0.00019798,2]
[346230874,1734790250415,-521.48,0.00019798,2]
[346230875,1734790250426,-89180.5913311,0.00019799,2]
[346230876,1734790250436,-1485.95873,0.00019799,2]
[346230877,1734790250446,-500.0,0.00019799,2]
[346230878,1734790250456,-827.14,0.00019799,2]
[346230879,1734790250465,-1274.67,0.00019799,2]
[346230880,1734790250475,-1054.82157282,0.000198,4]
[346230881,1734790250485,-21374.1565031,0.000198,2]
[346230882,1734790250495,-1608.86879466,0.00019812,2]
[346230883,1734790250504,-500.0,0.00019843,2]
[346230884,1734790250515,-500.0,0.00019843,2]
[346230885,1734790250524,-500.0,0.00019843,2]
[346230886,1734790250534,-500.0,0.00019843,2]
[346230887,1734790250543,-500.0,0.00019843,2]
[346230888,1734790250553,-155.94066825,0.00019843,2]
[346230889,1734790250563,-500.0,0.00019843,2]
[346230890,1734790250572,-500.0,0.00019843,2]
[346230891,1734790250583,-500.0,0.00019843,2]
[346230892,1734790250593,-500.0,0.00019843,2]
[346230893,1734790250602,-284.68522608,0.00019843,2]
[346230894,1734790250612,-500.0,0.00019843,2]
[346230895,1734790250621,-500.0,0.00019843,2]
[346230896,1734790250631,-500.0,0.00019843,2]
[346230897,1734790250640,-500.0,0.00019843,2]
[346230898,1734790250650,-500.0,0.00019843,2]
[346230899,1734790250659,-500.0,0.00019843,2]
[346230900,1734790250668,-599.69001141,0.00019843,2]
[346230901,1734790250679,-500.0,0.00019843,2]
[346230902,1734790250688,-612.17226921,0.00019843,2]
[346230903,1734790250698,-500.0,0.00019843,2]
[346230904,1734790250708,-436.67481469,0.00019843,2]
[346230905,1734790250717,-282.40663062,0.00019843,2]
[346230906,1734790250727,-500.0,0.00019843,2]
[346230907,1734790250736,-500.0,0.00019843,2]
[346230908,1734790250803,-214.79832495,0.00019843,2]
[346230909,1734790250813,-500.0,0.00019843,2]
[346230910,1734790250822,-500.0,0.00019843,2]
[346230911,1734790250831,-500.0,0.00019843,2]
[346230912,1734790250846,-178.35026544,0.00019843,2]
[346230913,1734790250855,-500.0,0.00019843,2]
[346230914,1734790250865,-500.0,0.00019843,2]
[346230915,1734790250875,-500.0,0.00019843,2]
[346230916,1734790250884,-500.0,0.00019843,2]
[346230917,1734790250893,-500.0,0.00019843,2]
[346230918,1734790250903,-500.0,0.00019843,2]
[346230919,1734790250914,-500.0,0.00019843,2]
[346230920,1734790250925,-500.0,0.00019843,2]
[346230921,1734790250935,-500.0,0.00019843,2]
[346230922,1734790250944,-500.0,0.00019843,2]
[346230923,1734790250954,-500.0,0.00019843,2]
[346230924,1734790250963,-500.0,0.00019843,2]
[346230925,1734790250972,-500.0,0.00019843,2]
[346230926,1734790250982,-500.0,0.00019843,2]
[346230927,1734790250991,-500.0,0.00019843,2]
[346230928,1734790251000,-500.0,0.00019843,2]
[346230929,1734790251009,-500.0,0.00019843,2]
[346230930,1734790251018,-559.29041351,0.00019843,2]
[346230931,1734790251027,-500.0,0.00019843,2]
[346230932,1734790251036,-500.0,0.00019843,2]
[346230933,1734790251046,-500.0,0.00019843,2]
[346230934,1734790251055,-500.0,0.00019843,2]
[346230935,1734790251066,-500.0,0.00019843,2]
[346230936,1734790251076,-437.8,0.00019843,2]
[346230937,1734790251087,-500.0,0.00019843,2]
[346230938,1734790251096,-500.0,0.00019843,2]
[346230939,1734790251106,-500.0,0.00019843,2]
[346230940,1734790251115,-500.0,0.00019843,2]
[346230941,1734790251124,-500.0,0.00019843,2]
[346230942,1734790251133,-500.0,0.00019843,2]
[346230943,1734790251142,-500.0,0.00019843,2]
[346230944,1734790251152,-500.0,0.00019843,2]
[346230945,1734790251162,-500.0,0.00019843,2]
[346230946,1734790251172,-500.0,0.00019843,2]
[346230947,1734790251183,-500.0,0.00019843,2]
[346230948,1734790251192,-500.0,0.00019843,2]
[346230949,1734790251201,-500.0,0.00019843,2]
[346230950,1734790251210,-500.0,0.00019843,2]
[346230951,1734790251220,-500.0,0.00019843,2]
[346230952,1734790251229,-500.0,0.00019843,2]
[346230953,1734790251239,-500.0,0.00019843,2]
[346230954,1734790251247,-500.0,0.00019843,2]
[346230955,1734790251257,-500.0,0.00019843,2]
[346230956,1734790251266,-500.0,0.00019843,2]
[346230957,1734790251275,-500.0,0.00019843,2]
[346230958,1734790251285,-500.0,0.00019843,2]
[346230959,1734790251294,-500.0,0.00019843,2]
[346230960,1734790251303,-505.43719337,0.00019843,2]
[346230961,1734790251312,-500.0,0.00019843,2]
[346230962,1734790251322,-500.0,0.00019843,2]
[346230963,1734790251331,-500.0,0.00019843,2]
[346230964,1734790251341,-500.0,0.00019843,2]
[346230965,1734790251350,-500.0,0.00019843,2]
[346230966,1734790251360,-268.7317985,0.00019843,2]
[346230967,1734790251369,-500.0,0.00019843,2]
[346230968,1734790251379,-516.52,0.00019843,2]
[346230969,1734790251388,-500.0,0.00019843,2]
[346230970,1734790251398,-500.0,0.00019843,2]
[346230971,1734790251407,-500.0,0.00019843,2]
[346230972,1734790251416,-155.76,0.00019843,2]
[346230973,1734790251428,-167.39782893,0.00019843,2]
[346230974,1734790251438,-500.0,0.00019843,2]
[346230975,1734790251448,-500.0,0.00019843,2]
[346230976,1734790251457,-500.0,0.00019843,2]
[346230977,1734790251467,-500.0,0.00019843,2]
[346230978,1734790251476,-519.73,0.00019843,2]
[346230979,1734790251486,-500.0,0.00019843,2]
[346230980,1734790251495,-500.0,0.00019843,2]
[346230981,1734790251505,-500.0,0.00019843,2]
[346230982,1734790251514,-500.0,0.00019843,2]
[346230983,1734790251523,-500.0,0.00019843,2]
[346230984,1734790251533,-500.0,0.00019843,2]
[346230985,1734790251542,-500.0,0.00019843,2]
[346230986,1734790251551,-500.0,0.00019843,2]
[346230987,1734790251560,-500.0,0.00019843,2]
[346230988,1734790251569,-500.0,0.00019843,2]
[346230989,1734790251579,-500.0,0.00019843,2]
[346230990,1734790251589,-500.0,0.00019843,2]
[346230991,1734790251598,-500.0,0.00019843,2]
[346230992,1734790251607,-500.0,0.00019843,2]
[346230993,1734790251617,-500.0,0.00019843,2]
[346230994,1734790251626,-500.0,0.00019844,2]
[346230995,1734790251635,-500.0,0.00019844,2]
[346230996,1734790251645,-500.0,0.00019845,2]
[346230997,1734790251654,-500.0,0.00019845,2]
[346230998,1734790251664,-500.0,0.00019845,2]
[346230999,1734790251675,-500.0,0.00019845,2]
[346231000,1734790251685,-563.14,0.00019845,2]
[346231001,1734790251694,-500.0,0.00019845,2]
[346231002,1734790251704,-1392.54,0.00019845,2]
[346231003,1734790251713,-1608.86879466,0.00019846,2]
[346231004,1734790251723,-150.0,0.00019877,2]
[346231005,1734790251734,-500.0,0.00019877,2]
[346231006,1734790251743,-161.91846212,0.00019877,2]
[346231007,1734790251752,-150.0,0.00019877,2]
[346231008,1734790251763,-150.0,0.00019877,2]
[346231009,1734790251773,-500.0,0.00019877,2]
[346231010,1734790251783,-244.27046539,0.00019877,2]
[346231011,1734790251793,-150.0,0.00019877,2]
[346231012,1734790251802,-150.0,0.00019877,2]
[346231013,1734790251811,-150.0,0.00019877,2]
[346231014,1734790251821,-200.90925341,0.00019877,2]
[346231015,1734790251831,-150.0,0.00019877,2]
[346231016,1734790251845,-150.0,0.00019877,2]
[346231017,1734790251855,-1304.0,0.00019877,2]
[346231018,1734790251864,-837.0,0.00019877,2]
[346231019,1734790251874,-900.0,0.00019878,2]
[346231020,1734790251885,-153.64504024,0.00019878,2]
[346231021,1734790251895,-1608.86879466,0.0001988,2]
[346231022,1734790251904,-4948.17110875,0.0001988,2]
[346231023,1734790251914,-1000.0,0.000199,2]
[346231024,1734790251925,-1113.0,0.000199,2]
[346231025,1734790251934,-1000.0,0.000199,3]
[346231026,1734790251943,-1000.0,0.000199,3]
[346231027,1734790251953,-1000.0,0.000199,2]
[346231028,1734790251963,-1000.0,0.000199,2]
[346231029,1734790251972,-1000.0,0.000199,2]
[346231030,1734790251982,-641.0,0.000199,4]
[346231031,1734790251991,-1000.0,0.000199,3]
[346231032,1734790252001,-1000.0,0.000199,2]
[346231033,1734790252010,-1000.0,0.000199,2]
[346231034,1734790252020,-181.04036622,0.00019905,2]
[346231035,1734790252029,-1012.58,0.00019925,2]
[346231036,1734790252039,-500.0,0.00019925,2]
[346231037,1734790252048,-500.0,0.00019925,2]
[346231038,1734790252058,-847.85,0.00019925,2]
[346231039,1734790252067,-500.0,0.00019925,2]
[346231040,1734790252077,-1764.12,0.00019925,2]
[346231041,1734790252086,-500.0,0.00019925,2]
[346231042,1734790252095,-2618.73,0.00019925,2]
[346231043,1734790252104,-597.24,0.00019925,2]
[346231044,1734790252113,-1300.34,0.00019925,2]
[346231045,1734790252123,-1086.06,0.00019925,2]
[346231046,1734790252132,-1512.59,0.00019925,2]
[346231047,1734790252142,-1178.45,0.00019925,2]
[346231048,1734790252151,-500.0,0.00019925,2]
[346231049,1734790252161,-1835.28,0.00019925,2]
[346231050,1734790252171,-1064.31,0.00019925,2]
[346231051,1734790252182,-500.0,0.00019925,2]
[346231052,1734790252191,-575.9,0.00019925,2]
[346231053,1734790252201,-4844.02,0.00019925,2]
[346231054,1734790252210,-500.0,0.00019925,2]
[346231055,1734790252219,-500.0,0.00019925,2]
[346231056,1734790252228,-1003.26,0.00019925,2]
[346231057,1734790252237,-500.0,0.00019925,2]
[346231058,1734790252247,-500.0,0.00019925,2]
[346231059,1734790252256,-500.0,0.00019925,2]
[346231060,1734790252265,-1002.7,0.00019925,2]
[346231061,1734790252274,-355.979569,0.00019945,2]
[346231062,1734790252284,-500.0,0.00019945,2]
[346231063,1734790252293,-500.0,0.00019945,2]
[346231064,1734790252303,-617.51,0.00019945,2]
[346231065,1734790252312,-505.01,0.00019945,2]
[346231066,1734790252321,-500.0,0.00019945,2]
[346231067,1734790252331,-258.411191,0.00019945,2]
[346231068,1734790252340,-965.8,0.00019945,2]
[346231069,1734790252349,-500.0,0.00019945,2]
[346231070,1734790252359,-544.66,0.00019945,2]
[346231071,1734790252368,-290.442694,0.00019945,2]
[346231072,1734790252377,-500.0,0.00019945,2]
[346231073,1734790252386,-500.0,0.00019945,2]
[346231074,1734790252395,-636.69,0.00019945,2]
[346231075,1734790252405,-966.36,0.00019945,2]
[346231076,1734790252416,-500.0,0.00019945,2]
[346231077,1734790252426,-732.34,0.00019945,2]
[346231078,1734790252436,-2496.46,0.00019945,2]
[346231079,1734790252446,-1300.24,0.00019945,2]
[346231080,1734790252456,-734.43,0.00019945,2]
[346231081,1734790252467,-1288.39,0.00019945,2]
[346231082,1734790252478,-5369.0,0.00019945,2]
[346231083,1734790252487,-3684.97,0.00019945,2]
[346231084,1734790252497,-1741.07,0.00019945,2]
[346231085,1734790252507,-500.0,0.00019945,2]
[346231086,1734790252517,-859.97,0.00019945,2]
[346231087,1734790252526,-649.61,0.00019945,2]
[346231088,1734790252536,-617.2,0.00019945,2]
[346231089,1734790252546,-2569.25,0.00019945,2]
[346231090,1734790252556,-852.42,0.00019945,2]
[346231091,1734790252566,-1783.0,0.00019945,2]
[346231092,1734790252576,-500.0,0.00019946,2]
[346231093,1734790252587,-649.5,0.00019946,2]
[346231094,1734790252597,-500.0,0.00019946,2]
[346231095,1734790252607,-500.0,0.00019946,2]
[346231096,1734790252617,-368.01798501,0.00019946,2]
[346231097,1734790252628,-500.0,0.00019946,2]
[346231098,1734790252638,-500.0,0.00019946,2]
[346231099,1734790252648,-522.9473701,0.00019946,2]
[346231100,1734790252657,-500.0,0.00019946,2]
[346231101,1734790252667,-500.0,0.00019946,2]
[346231102,1734790252680,-500.0,0.00019946,2]
[346231103,1734790252691,-500.0,0.00019946,2]
[346231104,1734790252701,-500.0,0.00019946,2]
[346231105,1734790252711,-500.0,0.00019946,2]
[346231106,1734790252721,-500.0,0.00019946,2]
[346231107,1734790252731,-500.0,0.00019946,2]
[346231108,1734790252740,-500.0,0.00019946,2]
[346231109,1734790252750,-500.0,0.00019946,2]
[346231110,1734790252760,-500.0,0.00019946,2]
[346231111,1734790252770,-500.0,0.00019946,2]
[346231112,1734790252779,-500.0,0.00019946,2]
[346231113,1734790252788,-500.0,0.00019946,2]
[346231114,1734790252797,-500.0,0.00019946,2]
[346231115,1734790252806,-500.0,0.00019946,2]
[346231116,1734790252815,-500.0,0.00019946,2]
[346231117,1734790252824,-500.0,0.00019946,2]
[346231118,1734790252833,-500.0,0.00019946,2]
[346231119,1734790252846,-500.0,0.00019946,2]
[346231120,1734790252855,-500.0,0.00019946,2]
[346231121,1734790252864,-603.33,0.00019946,2]
[346231122,1734790252874,-500.0,0.00019946,2]
[346231123,1734790252884,-500.0,0.00019946,2]
[346231124,1734790252894,-500.0,0.00019946,2]
[346231125,1734790252903,-500.0,0.00019946,2]
[346231126,1734790252913,-500.0,0.00019946,2]
[346231127,1734790252923,-500.0,0.00019946,2]
[346231128,1734790252938,-500.0,0.00019946,2]
[346231129,1734790252947,-500.0,0.00019946,2]
[346231130,1734790252957,-500.0,0.00019946,2]
[346231131,1734790252966,-500.0,0.00019946,2]
[346231132,1734790252975,-500.0,0.00019946,2]
[346231133,1734790252984,-500.0,0.00019946,2]
[346231134,1734790252994,-500.0,0.00019946,2]
[346231135,1734790253003,-500.0,0.00019946,2]
[346231136,1734790253012,-500.0,0.00019946,2]
[346231137,1734790253022,-500.0,0.00019946,2]
[346231138,1734790253031,-500.0,0.00019946,2]
[346231139,1734790253040,-500.0,0.00019946,2]
[346231140,1734790253051,-500.0,0.00019946,2]
[346231141,1734790253060,-500.0,0.00019946,2]
[346231142,1734790253070,-500.0,0.00019946,2]
[346231143,1734790253079,-500.0,0.00019946,2]
[346231144,1734790253089,-222.72,0.00019946,2]
[346231145,1734790253099,-500.0,0.00019946,2]
[346231146,1734790253108,-500.0,0.00019946,2]
[346231147,1734790253118,-618.93207028,0.00019946,2]
[346231148,1734790253127,-500.0,0.00019946,2]
[346231149,1734790253138,-413.97555986,0.00019946,2]
[346231150,1734790253147,-500.0,0.00019946,2]
[346231151,1734790253157,-500.0,0.00019946,2]
[346231152,1734790253168,-625.23,0.00019946,2]
[346231153,1734790253181,-500.0,0.00019946,2]
[346231154,1734790253191,-500.0,0.00019946,2]
[346231155,1734790253200,-503.52003745,0.00019946,2]
[346231156,1734790253210,-500.0,0.00019946,2]
[346231157,1734790253219,-500.0,0.00019946,2]
[346231158,1734790253229,-500.0,0.00019946,2]
[346231159,1734790253240,-500.0,0.00019946,2]
[346231160,1734790253249,-500.0,0.00019946,2]
[346231161,1734790253259,-500.0,0.00019946,2]
[346231162,1734790253269,-500.0,0.00019946,2]
[346231163,1734790253278,-500.0,0.00019946,2]
[346231164,1734790253288,-500.0,0.00019946,2]
[346231165,1734790253298,-502.59321338,0.00019946,2]
[346231166,1734790253307,-501.67976341,0.00019946,2]
[346231167,1734790253317,-500.0,0.00019946,2]
[346231168,1734790253327,-500.0,0.00019946,2]
[346231169,1734790253338,-500.0,0.00019946,2]
[346231170,1734790253348,-500.0,0.00019946,2]
[346231171,1734790253358,-500.0,0.00019946,2]
[346231172,1734790253368,-500.0,0.00019946,2]
[346231173,1734790253378,-500.0,0.00019946,2]
[346231174,1734790253387,-500.0,0.00019946,2]
[346231175,1734790253397,-500.0,0.00019946,2]
[346231176,1734790253406,-500.0,0.00019946,2]
[346231177,1734790253416,-500.0,0.00019946,2]
[346231178,1734790253427,-500.0,0.00019946,2]
[346231179,1734790253437,-500.0,0.00019946,2]
[346231180,1734790253447,-500.0,0.00019946,2]
[346231181,1734790253457,-500.0,0.00019946,2]
[346231182,1734790253466,-500.0,0.00019946,2]
[346231183,1734790253476,-500.0,0.00019946,2]
[346231184,1734790253486,-500.0,0.00019946,2]
[346231185,1734790253495,-500.0,0.00019946,2]
[346231186,1734790253505,-318.2767202,0.00019946,2]
[346231187,1734790253515,-500.0,0.00019946,2]
[346231188,1734790253525,-500.0,0.00019946,2]
[346231189,1734790253535,-500.0,0.00019946,2]
[346231190,1734790253545,-500.0,0.00019946,2]
[346231191,1734790253555,-398.05744339,0.00019946,2]
[346231192,1734790253565,-500.0,0.00019946,2]
[346231193,1734790253575,-500.0,0.00019946,2]
[346231194,1734790253585,-500.0,0.00019946,2]
[346231195,1734790253594,-500.0,0.00019946,2]
[346231196,1734790253604,-500.0,0.00019946,2]
[346231197,1734790253614,-500.0,0.00019946,2]
[346231198,1734790253623,-500.0,0.00019946,2]
[346231199,1734790253633,-500.0,0.00019946,2]
[346231200,1734790253644,-500.0,0.00019946,2]
[346231201,1734790253654,-500.0,0.00019946,2]
[346231202,1734790253663,-500.0,0.00019946,2]
[346231203,1734790253674,-500.0,0.00019946,2]
[346231204,1734790253688,-612.72,0.00019946,2]
[346231205,1734790253698,-500.0,0.00019946,2]
[346231206,1734790253707,-558.00601048,0.00019946,2]
[346231207,1734790253717,-500.0,0.00019946,2]
[346231208,1734790253726,-500.0,0.00019946,2]
[346231209,1734790253736,-500.0,0.00019946,2]
[346231210,1734790253745,-500.0,0.00019946,2]
[346231211,1734790253755,-511.23280933,0.00019946,2]
[346231212,1734790253765,-500.0,0.00019946,2]
[346231213,1734790253775,-500.0,0.00019946,2]
[346231214,1734790253785,-500.0,0.00019946,2]
[346231215,1734790253794,-372.55295658,0.00019946,2]
[346231216,1734790253804,-500.0,0.00019946,2]
[346231217,1734790253813,-500.0,0.00019946,2]
[346231218,1734790253823,-500.0,0.00019946,2]
[346231219,1734790253832,-500.0,0.00019946,2]
[346231220,1734790253846,-500.0,0.00019946,2]
[346231221,1734790253856,-500.0,0.00019946,2]
[346231222,1734790253865,-500.0,0.00019946,2]
[346231223,1734790253875,-500.0,0.00019946,2]
[346231224,1734790253886,-660.96,0.00019946,2]
[346231225,1734790253896,-151.0,0.00019946,2]
[346231226,1734790253905,-206.14,0.00019946,2]
[346231227,1734790253917,-500.0,0.00019946,2]
[346231228,1734790253929,-500.0,0.00019946,2]
[346231229,1734790253938,-500.0,0.00019946,2]
[346231230,1734790253948,-500.0,0.00019946,2]
[346231231,1734790253958,-500.0,0.00019946,2]
[346231232,1734790253968,-500.0,0.00019946,2]
[346231233,1734790253977,-572.35148065,0.00019946,2]
[346231234,1734790253987,-500.0,0.00019946,2]
[346231235,1734790253997,-506.73703259,0.00019946,2]
[346231236,1734790254007,-500.0,0.00019946,2]
[346231237,1734790254016,-500.0,0.00019946,2]
[346231238,1734790254026,-500.0,0.00019946,2]
[346231239,1734790254035,-500.0,0.00019946,2]
[346231240,1734790254045,-500.0,0.00019946,2]
[346231241,1734790254055,-500.0,0.00019946,2]
[346231242,1734790254064,-500.0,0.00019946,2]
[346231243,1734790254074,-253.74691673,0.00019946,2]
[346231244,1734790254084,-509.07068706,0.00019946,2]
[346231245,1734790254093,-500.0,0.00019946,2]
[346231246,1734790254103,-500.76226297,0.00019946,2]
[346231247,1734790254112,-520.14440055,0.00019946,2]
[346231248,1734790254121,-151.000377,0.00019946,2]
[346231249,1734790254131,-500.0,0.00019946,2]
[346231250,1734790254140,-500.0,0.00019946,2]
[346231251,1734790254149,-500.0,0.00019946,2]
[346231252,1734790254159,-151.0,0.00019946,2]
[346231253,1734790254170,-1049.1,0.00019946,2]
[346231254,1734790254182,-500.0,0.00019946,2]
[346231255,1734790254191,-185.735732,0.00019946,2]
[346231256,1734790254201,-1093.42,0.00019946,2]
[346231257,1734790254210,-1235.47,0.00019946,2]
[346231258,1734790254220,-500.0,0.00019946,2]
[346231259,1734790254229,-185.735732,0.00019946,2]
[346231260,1734790254239,-500.0,0.00019946,2]
[346231261,1734790254248,-531.27,0.00019946,2]
[346231262,1734790254258,-731.72,0.00019946,2]
[346231263,1734790254267,-500.0,0.00019946,2]
[346231264,1734790254277,-2301.99,0.00019946,2]
[346231265,1734790254286,-500.0,0.00019946,2]
[346231266,1734790254296,-191.60031063,0.00019946,2]
[346231267,1734790254305,-500.0,0.00019946,2]
[346231268,1734790254315,-500.0,0.00019946,2]
[346231269,1734790254324,-500.0,0.00019946,2]
[346231270,1734790254333,-234.63379669,0.00019946,2]
[346231271,1734790254342,-500.0,0.00019946,2]
[346231272,1734790254352,-500.0,0.00019946,2]
[346231273,1734790254362,-500.0,0.00019946,2]
[346231274,1734790254373,-500.0,0.00019946,2]
[346231275,1734790254382,-500.0,0.00019946,2]
[346231276,1734790254391,-500.0,0.00019946,2]
[346231277,1734790254401,-500.0,0.00019946,2]
[346231278,1734790254410,-151.0,0.00019946,2]
[346231279,1734790254420,-500.0,0.00019946,2]
[346231280,1734790254436,-500.0,0.00019946,2]
[346231281,1734790254445,-500.0,0.00019946,2]
[346231282,1734790254454,-151.0,0.00019946,2]
[346231283,1734790254464,-288.59907627,0.00019946,2]
[346231284,1734790254474,-841.08,0.00019946,2]
[346231285,1734790254484,-500.0,0.00019946,2]
[346231286,1734790254494,-500.0,0.00019946,2]
[346231287,1734790254504,-500.0,0.00019946,2]
[346231288,1734790254515,-700.0,0.00019946,2]
[346231289,1734790254524,-500.0,0.00019946,2]
[346231290,1734790254534,-457.93013707,0.00019946,2]
[346231291,1734790254543,-580.54828254,0.00019946,2]
[346231292,1734790254553,-560.66287844,0.00019946,2]
[346231293,1734790254568,-500.0,0.00019946,2]
[346231294,1734790254578,-500.0,0.00019946,2]
[346231295,1734790254587,-500.0,0.00019946,2]
[346231296,1734790254597,-500.0,0.00019946,2]
[346231297,1734790254758,-593.29,0.00019946,2]
[346231298,1734790254789,-151.0,0.00019946,2]
[346231299,1734790254799,-500.0,0.00019946,2]
[346231300,1734790254809,-500.0,0.00019946,2]
[346231301,1734790254818,-500.0,0.00019946,2]
[346231302,1734790254827,-500.0,0.00019946,2]
[346231303,1734790254839,-290.0,0.00019946,2]
[346231304,1734790254849,-500.0,0.00019946,2]
[346231305,1734790254858,-500.0,0.00019946,2]
[346231306,1734790254867,-500.0,0.00019946,2]
[346231307,1734790254877,-500.0,0.00019946,2]
[346231308,1734790254886,-500.0,0.00019946,2]
[346231309,1734790254895,-500.0,0.00019946,2]
[346231310,1734790254905,-647.35,0.00019946,2]
[346231311,1734790254914,-500.0,0.00019946,2]
[346231312,1734790254923,-507.01507272,0.00019946,2]
[346231313,1734790254936,-677.22,0.00019946,2]
[346231314,1734790254945,-502.5,0.00019946,2]
[346231315,1734790254954,-500.0,0.00019946,2]
[346231316,1734790254963,-500.0,0.00019946,2]
[346231317,1734790254973,-916.33,0.00019946,2]
[346231318,1734790254982,-500.0,0.00019946,2]
[346231319,1734790254991,-504.93363303,0.00019946,2]
[346231320,1734790255000,-662.5,0.00019946,2]
[346231321,1734790255010,-500.0,0.00019946,2]
[346231322,1734790255019,-500.0,0.00019946,2]
[346231323,1734790255028,-500.0,0.00019946,2]
[346231324,1734790255038,-500.0,0.00019946,2]
[346231325,1734790255047,-514.76,0.00019946,2]
[346231326,1734790255056,-500.0,0.00019946,2]
[346231327,1734790255065,-500.0,0.00019946,2]
[346231328,1734790255074,-500.0,0.00019946,2]
[346231329,1734790255084,-500.0,0.00019946,2]
[346231330,1734790255093,-500.0,0.00019946,2]
[346231331,1734790255102,-500.0,0.00019946,2]
[346231332,1734790255111,-500.0,0.00019946,2]
[346231333,1734790255120,-975.32,0.00019946,2]
[346231334,1734790255129,-500.0,0.00019946,2]
[346231335,1734790255138,-500.0,0.00019946,2]
[346231336,1734790255148,-500.0,0.00019946,2]
[346231337,1734790255157,-500.0,0.00019946,2]
[346231338,1734790255166,-1100.11,0.00019946,2]
[346231339,1734790255179,-151.0,0.00019946,2]
[346231340,1734790255189,-500.0,0.00019946,2]
[346231341,1734790255199,-500.0,0.00019946,2]
[346231342,1734790255209,-500.0,0.00019946,2]